Cogmind - Beta 14 @@@ ROGUE MODE // 2025.03.03 @ 11:57:27 Player: Bingus Khan Result: Destroyed by G-47 Trooper with Particle Gun Performance ------------- Evolutions (0) 0 Regions Visited (2) 400 Robots Destroyed (16) 80 Value Destroyed (419) 419 Prototype IDs (0) 0 Alien Tech Used (0) 0 Bonus (6) 6 TOTAL SCORE: 905 Bonus ------- High Alert Combat Kills 6 Cogmind --------- Core Integrity 0/250 Matter 91/300 Energy 113/250 System Corruption 10% Temperature Cool (34) Movement Rolling (95) Ox1 Location -10/Mines Parts ------- > --- POWER (1) -------- Ion Engine > --- PROPULSION (2) --- Aluminum Leg Wheel > --- UTILITY (2) ------ Small Storage Unit ECM Suite > --- WEAPON (2) ------- Spread Laser Assault Rifle > --- INVENTORY (8) ---- Wheel Small Matter Pod (0) Visual Processing Unit Light Assault Rifle Peak State ------------ > --- POWER ------------ Ion Engine > --- PROPULSION ------- Aluminum Leg Aluminum Leg > --- UTILITY ---------- Small Storage Unit Small Matter Pod > --- WEAPON ----------- Assault Rifle Light Assault Rifle > --- INVENTORY -------- Ion Engine Wheel Wheel Small Matter Pod Visual Processing Unit Medium Laser Spread Laser Grenade Launcher [Rating: 8] Favorites ----------- Power Ion Engine Engine Ion Engine Propulsion Aluminum Leg Leg Aluminum Leg Wheel Wheel Utility Small Storage Unit Device ECM Suite Storage Small Storage Unit Weapon Assault Rifle Energy Gun Medium Laser Ballistic Gun Assault Rifle Launcher Grenade Launcher Build | -11 -10 -10 ------- Run | Yrd Mat Min Slots Evolved . | . . . Power . | . . . Propulsion . | . . . Utility . | . . . Weapon . | . . . Parts Attached 24 | 6 9 9 Power 3 | 1 1 1 Engine 3 | 1 1 1 Core . | . . . Reactor . | . . . Propulsion 7 | 2 2 3 Treads . | . . . Leg 4 | 2 . 2 Wheel 3 | . 2 1 Hover . | . . . Flight . | . . . Utility 3 | 1 1 1 Device 1 | . . 1 Storage 2 | 1 1 . Processor . | . . . Hackware . | . . . Protection . | . . . Artifact . | . . . Weapon 11 | 2 5 4 Energy Gun 3 | . 2 1 Energy Cannon . | . . . Ballistic Gun 5 | 2 1 2 Ballistic Cannon . | . . . Launcher 3 | . 2 1 Special Weapon . | . . . Impact Weapon . | . . . Slashing Weapon . | . . . Piercing Weapon . | . . . Special Melee Weapon . | . . . Unidentified Prototypes . | . . . Parts Lost 5 | . 1 4 Power 1 | . . 1 Propulsion 2 | . 1 1 Utility . | . . . Weapon 2 | . . 2 Highest Loss Streak 4 | . 1 4 To Critical Strikes . | . . . Average Slot Usage (%) 97 | . 97 96 Engine 14 | . 14 14 Leg 23 | . 24 21 Wheel 4 | . 3 7 Device 2 | . . 9 Storage 24 | . 25 18 Energy Gun 7 | . 5 11 Ballistic Gun 18 | . 20 12 Launcher 1 | . 1 . Peak Build Rating 8 | 6 8 8 Average Rating 6 | 4 7 7 On Entrance 4 | . 6 8 Naked Turns . | . . . Heaviest Build 16 | 13 16 16 Greatest Support 20 | 20 20 20 Greatest Overweight (x) 4 | 4 1 1 Average Overweight (x) . | . . . Largest Inventory Capacity 8 | 8 8 8 Average Capacity 7 | 7 8 8 Most Carried 8 | 4 8 8 Average Carried 6 | 1 7 7 Final Capacity 8 | 8 8 8 Final Carried 8 | 4 8 4 Class Distribution -------------------- 100% | Mutant Dominant Class ---------------- Mutant | -10/Materials Mutant | -10/Mines Resources | -11 -10 -10 ----------- Run | Yrd Mat Min Matter Collected 369 | 132 48 189 Remotely . | . . . Salvage Created 254 | . 226 28 Parts 23 | . 19 4 Haulers Intercepted . | . . . Recyclers Shooed . | . . . Parts Field Recycled . | . . . Retrieved Matter . | . . . Parts Self-Destructed . | . . . Prevented . | . . . Kills | -11 -10 -10 ------- Run | Yrd Mat Min Combat Hostiles Destroyed 14 | . 10 4 Guns 6 | . 4 2 AOE 8 | . 6 2 Classes Destroyed 4 | . 4 . Builder 1 | . 1 . Watcher 1 | . 1 . Swarmer 6 | . 3 3 Grunt 8 | . 7 1 Best Kill Streak 9 | . 9 4 Combat Bots Only 4 | . 4 4 Max Kills in Single Turn 4 | . 4 3 Gunslinging . | . . . Exploded 4 | . 4 2 Melee . | . . . Uniques/NPCs Destroyed . | . . . Combat | -11 -10 -10 -------- Run | Yrd Mat Min Hostile Shots Fired 83 | . 57 26 Missed 30 | . 20 10 Damage Taken 1091 | . 568 523 Core 263 | . 105 158 Absorbed by Shields . | . . . Core Remaining (%) 100 | 100 . . Volleys Fired 34 | . 24 10 Largest 2 | . 2 2 Hottest 85 | . 80 85 Shots Fired 62 | . 45 17 Gun 56 | . 41 15 Cannon . | . . . Launcher 6 | . 4 2 Special . | . . . Kinetic 46 | . 38 8 Thermal 10 | . 3 7 Explosive 6 | . 4 2 Electromagnetic . | . . . Robot Hit Streak 12 | . 12 5 Robot Miss Streak 2 | . 2 2 Penetration Max . | . . . Secondary Targets . | . . . Shots Hit Robots 42 | . 30 12 Core Hits 25 | . 18 7 Critical Kills . | . . . Critical Parts Destroyed . | . . . Critical Strikes . | . . . Melee Attacks . | . . . Impact . | . . . Slashing . | . . . Piercing . | . . . Sneak Attacks . | . . . Combat Hostiles . | . . . Follow-up Attacks . | . . . Damage Inflicted 1594 | . 1186 408 Guns 501 | . 348 153 Cannons . | . . . Explosions 1089 | . 834 255 Melee . | . . . Ramming 4 | . 4 . Kinetic 390 | . 311 79 Thermal 745 | . 568 177 Explosive 455 | . 303 152 Electromagnetic . | . . . Impact . | . . . Slashing . | . . . Piercing . | . . . Highest Corruption 10 | . . 10 Average Corruption 10 | . . 10 Corruption Purged . | . . . Corruption Blocked . | . . . Effects 1 | . . 1 Data Loss (minor) 1 | . . 1 Overload Shots . | . . . Overflow Damage 86 | . 86 . Projectiles . | . . . Explosions 86 | . 86 . Melee . | . . . Knockbacks . | . . . Impact . | . . . Kinetic . | . . . Secondary . | . . . Self-Inflicted Damage 230 | . 198 32 Shots 3 | . 2 1 Rammed . | . . . Targets Rammed 1 | . 1 . Kicked 1 | . 1 . Crushed . | . . . Highest Temperature 106 | . 36 106 Average Temperature 29 | . 10 48 Received Heat Transfer 258 | . 132 126 Siege Activations . | . . . Robots Corrupted . | . . . Combat Hostiles . | . . . Parts Fried . | . . . Impact Corruptions . | . . . Robots Melted . | . . . Combat Hostiles . | . . . Parts Melted . | . . . Heat Transferred 761 | . 411 350 Parts Sabotaged . | . . . Parts Stolen . | . . . Parts Stripped . | . . . Power Chain Reactions . | . . . Alert | -11 -10 -10 ------- Run | Yrd Mat Min Peak Influence 499 | . 499 321 Initial 194 | . . 194 Average 122 | . 112 230 Maximum Alert Level 2 | . 2 1 Low Security (%) 81 | 100 84 62 Level 1 12 | . 7 37 Level 2 5 | . 8 . Level 3 . | . . . Level 4 . | . . . Level 5 . | . . . High Security . | . . . Max Security . | . . . Squads Dispatched 2 | . 2 . Investigation 1 | . 1 . Extermination . | . . . Reinforcement 1 | . 1 . Assault . | . . . Garrison . | . . . Intercept . | . . . Searches Triggered . | . . . Construction Impeded . | . . . Haulers Reinforced . | . . . Active Scanning Responses . | . . . Cargo Convoy Interrupts . | . . . Stealth | -11 -10 -10 --------- Run | Yrd Mat Min Distress Signals 1 | . 1 . Communications Jammed . | . . . Distress Signals . | . . . Times Spotted 21 | . 16 5 Peak Tracking Total 9 | . 9 5 Tactical Retreats 3 | . 3 . Traps | -11 -10 -10 ------- Run | Yrd Mat Min Traps Triggered . | . . . Indirectly . | . . . Trap Hack Attempts . | . . . Triggered . | . . . Disarmed . | . . . Reprogrammed . | . . . Reused . | . . . Traps Extracted . | . . . Installed . | . . . Triggered . | . . . Machines | -11 -10 -10 ---------- Run | Yrd Mat Min Machines Disabled 4 | . 3 1 Max in Single Turn 2 | . 2 1 Machines Repaired . | . . . Machines Dismantled . | . . . Machines Sabotaged . | . . . Overloaded Fab Kills . | . . . Hacking | -11 -10 -10 --------- Run | Yrd Mat Min Machines Accessed 1 | . 1 . Terminals 1 | . 1 . Fabricators . | . . . Repair Stations . | . . . Recycling Units . | . . . Scanalyzers . | . . . Garrison Access . | . . . Total Hacks 3 | . 3 . Successful 1 | . 1 . Failed 2 | . 2 . Catastrophic 1 | . 1 . Database Lockouts . | . . . Manual 2 | . 2 . Terminals 3 | . 3 . Fabricators . | . . . Repair Stations . | . . . Recycling Units . | . . . Scanalyzers . | . . . Garrison Access . | . . . Terminal Hacks 1 | . 1 . Zone Layout 1 | . 1 . Fabricator Hacks . | . . . Repair Station Hacks . | . . . Recycling Unit Hacks . | . . . Scanalyzer . | . . . Garrison Access Hacks . | . . . Unauthorized Hacks . | . . . Terminals . | . . . Fabricators . | . . . Repair Stations . | . . . Recycling Units . | . . . Scanalyzers . | . . . Garrison Access . | . . . Data Cores Recovered . | . . . Used . | . . . Hacking Detections 1 | . 1 . Full Trace Events 1 | . 1 . Feedback Events . | . . . Feedback Blocked . | . . . Robot Schematics Acquired . | . . . Robots Built . | . . . Authchips . | . . . Time . | . . . Total Robot Build Rating . | . . . Part Schematics Acquired . | . . . Parts Built . | . . . Authchips . | . . . Time . | . . . Total Part Build Rating . | . . . Parts Repaired . | . . . Time . | . . . Parts Recycled . | . . . Recycled Matter . | . . . Retrieved Matter . | . . . Retrieved Components . | . . . Parts Scanalyzed . | . . . Part Schematics Acquired . | . . . Parts Damaged . | . . . Bothacking | -11 -10 -10 ------------ Run | Yrd Mat Min Used RIF Installer . | . . . Robots Hacked . | . . . Non-combat . | . . . Combat . | . . . Robot Hacks Applied . | . . . Relay Couplers Released . | . . . Fabnet Peak Effective % . | . . . Robots Rewired . | . . . Allies Hacked . | . . . Hacks Repelled . | . . . Allies | -11 -10 -10 -------- Run | Yrd Mat Min Total Allies . | . . . Largest Group . | . . . Highest-Rated Group . | . . . Highest-Rated Ally . | . . . Total Orders . | . . . Ally Attacks . | . . . Total Damage . | . . . Kills . | . . . Allies Corrupted . | . . . Allies Melted . | . . . Intel | -11 -10 -10 ------- Run | Yrd Mat Min Robot Analysis Total . | . . . Derelict Logs Recovered 1 | . . 1 Drone Launches . | . . . Drone Recoveries . | . . . Exploration | -11 -10 -10 ------------- Run | Yrd Mat Min Turns Passed 587 | 79 384 124 Spaces Moved 380 | 51 255 74 Core 19 | 19 . . Treads . | . . . Legs 294 | 32 216 46 Wheels 67 | . 39 28 Hover . | . . . Flight . | . . . Fastest Speed 50 | 50 80 80 Average Speed 114 | 130 114 105 Slowest Speed 250 | 250 190 120 Overloaded Moves . | . . . Propulsion Burnouts . | . . . Robots Hopped . | . . . Cave-ins Triggered 1 | . . 1 Exploration Rate (%) 23 | 5 45 20 Regions Visited 2 Branch Regions 1 Pre-discovered Areas 1 | . . 1 Known Exits Taken . | . . . Unknown Exits Taken 2 | 1 1 . Scrap Searched 1 | . . 1 Spaces Dug . | . . . Terrain Destroyed 90 | . 73 17 Melee . | . . . Projectile . | . . . AOE 90 | . 73 17 Terrain Rammed . | . . . Walls Destroyed . | . . . Machines Disabled . | . . . Actions | -11 -10 -10 --------- Run | Yrd Mat Min Total 466 | 60 302 104 Wait 10 | . 5 5 Move 378 | 50 254 74 Hop . | . . . Pick Up 13 | 4 7 2 Fast Attach 8 | 6 1 1 Attach 5 | . 1 4 Detach . | . . . Swap 11 | . 7 4 Drop 6 | . 2 4 Fire 34 | . 24 10 Melee . | . . . Ram . | . . . Kick 1 | . 1 . Crush . | . . . Escape Stasis . | . . . Rewire . | . . . Trap . | . . . Miscellaneous . | . . . Route ------- -11/Scrapyard -10/Materials (discovered 2 exits: [Mat] / [*Min]) -10/Mines History --------- Turn | Location | Event 25 | -11/Scrapyard | Discovered new exit (range 15) 80 | -11/Scrapyard | Entered Materials 147 | -10/Materials | Discovered new exit (range 19) 312 | -10/Materials | Build established: Mutant 456 | -10/Materials | Discovered new exit (range 11) 464 | -10/Materials | Entered Mines 465 | -10/Mines | Learned location of Storage (-8) 469 | -10/Mines | Learned location of 2 exits from Materials 479 | -10/Mines | Found DCF Scrap (13 items) 565 | -10/Mines | Crushed by falling debris 565 | -10/Mines | Core integrity fell below 50% 565 | -10/Mines | Core integrity fell below 20% 565 | -10/Mines | System corruption reached 10% 588 | -10/Mines | Destroyed by G-47 Trooper with Particle Gun Last Messages --------------- 00547_ S-10 Pest destroyed. 00548_ Grenade Launcher destroyed. 00551_ G-34 Mercenary destroyed. 00562_ U-05 Engineer lays Concrete. 00565_ The unstable cave ceiling collapses. 00565_ Crushed by falling debris. [Achievement: Unlikely Earthworm] 00565_ Med. Laser destroyed. 00565_ System corrupted by crushing effect (+4). 00565_ Aluminum Leg destroyed. 00565_ System corrupted by crushing effect (+2). 00565_ Ion Engine destroyed. 00565_ System corrupted by crushing effect (+4). 00565_ U-05 Engineer lays Concrete. 00572_ Critical hit (Burn: +37). 00573_ The unstable cave ceiling collapses. 00573_ U-05 Engineer lays Concrete. 00577_ T-07 Excavator is excavating. 00583_ System corrupted: Component data lost. 00585_ T-07 Excavator is excavating. Map ----- +----------------------------------------------------+ | ?????????????????????????????????????????????????? | | ?????????????????????????????????????????????????? | | ?????????????????????????????????????????????????? | | ?????????????????????????????????????????????????? | | ?????????????????????????????????????????????????? | | ?????????????????????????????????????????????????? | | ??????????????????????????#??????????????????????? | | ?????????????????????????? ??????????????????????? | | ?????????????????????????? #?????????????????????? | | ?????????????????????????? #?????????????????????? | | ????????????# ???????????? #?????????????????????? | | ???????????? #?###?????? #?????????????????????? | | ##?????????# "# ##???# #?????????????????????? | | ##????????? #### #?????#???????????????? | | ##?????????? "# ##??? #???????????????? | | ##??????????? *%[ = #### #???????????????? | | ##???????????? #???????????????? | | # #?????????????? * #???????????????? | | ## #????????????????" #?????????????????? | | ?# ##?????????????????## #?????????????????? | | ?# #??????????????????# ##?????????????????? | | ?# #??????????????????### ##??????????????????? | | ?# #####???????????????## ###???????????????????? | | ## # #????????????????# #?????????????????????? | | #????????????# ###g#?????????????????????? | | #????????????# @r####??????????????????? | | ##????????????#####r# #??????????????????? | | #???????#####????# #???????????????????? | | ##?????## #????# ???????????????????? | | ##????# #????# ## ??????????????????? | | ##??## ###### ## t #????????????????? | | ! #?## #? ##????????????????? | | = |### #??#?????????????????? | | !*/ * #########????????????????????? | | #####=[| ! * ####????????????????????????????? | | ????##############???????????????????????????????? | | ?????????????????????????????????????????????????? | | ?????????????????????????????????????????????????? | | | | | | | | | | | | | | | | | | | | | | | | | +----------------------------------------------------+ Best States ------------- Heat Dissipation 25 Energy Generation 10 Energy Capacity 250 Matter Stores 185 Matter Capacity 350 Sight Range 16 Terrain Scan Density 10 ECM Strength 1 Evasion (%) 55 Item Schematics ----------------- None Robot Schematics ------------------ None Fabricated ------------ Nothing Alien Tech Used ----------------- None Achievements -------------- Unlikely Earthworm Challenges ------------ None Game ------ Seed ShadeWarpBattery Manual? 0 Play Time 00:14:05 Cumulative 8.6 hours Start 2025.03.03 @ 11:31:57 End 2025.03.03 @ 11:57:27 Sessions 1 Manual Loads 0 Difficulty Rogue Special Mode None Game No. 26 Rogue 21 Adventurer 5 Explorer 0 Win Type - Total 0 Types 0/0/0/0/0/0/0/0/0 Lore% 2 Gallery% 15 Achievement% 12 Wizard Run 0 Options --------- Layout 1 ASCII 0 Keyboard 1 Movement Numpad Keybinds 0 Fullscreen 1 Font 24/Smallcaps Map View 50x35 Zoom Use 0% Tactical HUD 1 Map Filters NONE Filters NONE Steam 1 RUN: 6343f1f4-7c46-4c2e-95ec-cbc453ea1c5e